bitfinex-derivatives/quotes_SOLF0:USTF0_20240829
["timestamp","ask_amount","ask_price","bid_price","bid_amount"]
[1724903513978,10.7,143.2,143.18,3.4912]
[1724903514185,10.7,143.2,143.15,1.3551]
[1724903514387,10.7,143.2,143.16,4.18]
[1724903515390,10.7,143.2,143.17,3.4913]
[1724903515887,10.7,143.2,143.16,4.18]
[1724903516384,10.7,143.2,143.18,3.4912]
[1724903518482,0.05011886,143.21,143.19,3.4909]
[1724903518690,0.05011886,143.21,143.16,14.88]
[1724903519092,0.05011886,143.21,143.18,3.4911]
[1724903519594,10.75011886,143.21,143.18,3.4911]
[1724903521890,0.05011886,143.21,143.16,4.18]
[1724903522096,0.05011886,143.21,143.16,14.88]
[1724903522494,0.05011886,143.21,143.17,3.4913]
[1724903522695,10.7,143.2,143.16,4.18]
[1724903523597,10.7,143.2,143.19,3.4909]
[1724903523786,0.05011886,143.21,143.16,14.88]
[1724903528294,0.05011886,143.21,143.19,3.4908]
[1724903529002,0.05011886,143.21,143.2,3.4907]
[1724903533201,14.22694046,143.21,143.15,4.58555527]
[1724903533401,10.75011886,143.21,143.17,4.18]
[1724903533704,10.75011886,143.21,143.18,3.491]
[1724903534498,0.05011886,143.21,143.17,4.18]
[1724903534898,0.05011886,143.21,143.18,3.491]
[1724903535701,0.05011886,143.21,143.19,3.4909]
[1724903535896,0.05011886,143.21,143.17,4.18]
[1724903536098,0.05011886,143.21,143.17,14.88]
[1724903536499,0.05011886,143.21,143.17,4.18]
[1724903536699,0.05011886,143.21,143.18,10.7]
[1724903537296,0.05011886,143.21,143.2,3.4907]
[1724903540009,0.05011886,143.21,143.15,1.3551]
[1724903540308,10.75011886,143.21,143.16,4.18]
[1724903540509,10.75011886,143.21,143.18,3.491]
[1724903543213,0.05011886,143.21,143.18,3.491]
[1724903543415,0.05011886,143.21,143.16,14.88]
[1724903544014,0.05011886,143.21,143.18,3.491]
[1724903545714,0.05011886,143.21,143.19,3.4909]
[1724903546214,0.05011886,143.21,143.16,14.88]
[1724903546717,0.05011886,143.21,143.2,3.4907]
[1724903546918,0.05011886,143.21,143.2,7.6707]
[1724903547118,0.05011886,143.21,143.2,4.18]
[1724903548318,0.05011886,143.21,143.2,7.6707]
[1724903560331,340.3411,143.28,143.24,3.4897]
[1724903560537,10.7,143.26,143.21,14.25390732]
[1724903560940,10.7,143.26,143.22,3.4901]
[1724903561132,10.7,143.26,143.21,14.25390732]
[1724903561332,10.74474526,143.25,143.22,0.05095122]
[1724903561631,10.7,143.23,143.22,0.05095122]
[1724903564139,16.16119396,143.23,143.22,0.05095122]
[1724903566047,10.7,143.23,143.22,0.05095122]
[1724903567235,7.0173318,143.24,143.22,0.05095122]
[1724903567540,17.7173318,143.24,143.22,0.05095122]
[1724903568842,10.7,143.24,143.22,0.05095122]
[1724903569542,14.18984151,143.24,143.22,0.05095122]
[1724903570543,10.7,143.23,143.22,0.05095122]
[1724903570837,16.16306014,143.23,143.22,0.05095122]
[1724903571844,19.65306014,143.23,143.22,0.05095122]
[1724903573147,14.19,143.23,143.22,0.05095122]
[1724903573346,19.65329052,143.23,143.22,0.05095122]
[1724903574150,16.16329052,143.23,143.22,0.05095122]
[1724903576146,16.16329052,143.23,142.98,114.50959475]
[1724903576147,355.16329052,143.23,143.14,2.6371]
[1724903576342,10.7,143.18,143.12,1.3249]
[1724903576537,10.7,143.16,143.15,3.4918]
[1724903576738,10.7,143.16,143.13,4.22]
[1724903577045,10.7,143.16,143.14,3.4921]
[1724903577243,10.74990473,143.16,143.14,3.4921]
[1724903577839,10.74990473,143.16,143.13,7.7123]
[1724903578244,10.74990473,143.16,143.09,2.5689]
[1724903578245,10.7,143.15,143.09,2.5689]
[1724903578442,10.7,143.15,143.11,7.7128]
[1724903579151,10.7,143.14,143.08,1.3553]
[1724903579452,0.04959153,143.12,143.09,1.17421729]
[1724903579649,0.04959153,143.12,143.09,4.66741729]
[1724903579944,0.04959153,143.12,143.09,3.4932]
[1724903580150,0.04959153,143.12,143.1,3.4931]
[1724903580454,0.04959153,143.12,143.08,9.01596247]
[1724903580651,0.04959153,143.12,143.09,1.17422553]
[1724903580849,0.04959153,143.12,143.1,3.493]
[1724903581652,0.04959153,143.12,143.11,3.4929]
[1724903586156,349.7,143.19,143.11,1.17405297]
[1724903586447,10.7,143.18,143.12,4.24]
[1724903586851,10.7,143.16,143.13,3.4923]
[1724903587050,10.74694597,143.16,143.13,3.54189153]
[1724903588252,0.04694597,143.16,143.13,0.04959153]
[1724903588456,10.74694597,143.16,143.13,0.04959153]
[1724903590358,10.74694597,143.16,143.13,3.54199153]
[1724903590952,0.04694597,143.16,143.14,3.4921]
[1724903592459,0.04694597,143.16,143.15,3.4919]
[1724903602268,10.74694597,143.16,143.13,0.04959153]
[1724903602463,10.7,143.14,143.13,0.04959153]
[1724903604371,14.1922,143.14,143.13,0.04959153]
[1724903605475,3.4922,143.14,143.13,0.04959153]
[1724903605774,14.1922,143.14,143.13,0.04959153]
[1724903608074,10.7,143.14,143.13,0.04959153]
[1724903608775,14.1922,143.14,143.13,0.04959153]
[1724903609481,3.4926,143.13,143.09,3.4933]
[1724903609780,10.7,143.11,143.09,3.4933]
[1724903610482,0.051358,143.11,143.09,3.4933]
[1724903610874,0.051358,143.11,143.1,3.4931]
[1724903611979,0.051358,143.11,143.08,1.3553]
[1724903612186,0.051358,143.11,143.09,3.4933]
[1724903613477,0.051358,143.11,143.1,3.4931]
[1724903614776,0.051358,143.11,143.09,3.4933]
[1724903615983,0.051358,143.11,143.09,3.4934]
[1724903616481,0.051358,143.11,143.1,3.4931]
[1724903624186,0.051358,143.11,143.08,1.3553]
[1724903624781,10.7,143.09,142.97,12.93873446]
[1724903624987,0.05262678,143.05,142.98,1.17510931]
[1724903625188,0.05262678,143.05,143.04,3.4946]
[1724903625384,3.50694885,143.1,143.03,10.7]
[1724903625585,3.50694885,143.1,142.99,5.5038]
[1724903625586,10.7,143.07,143.01,10.7]
[1724903625804,10.7,143.07,143.02,5.6139]
[1724903626492,0.04944616,143.06,143.03,0.04449878]
[1724903629087,3.54354616,143.06,143.03,0.04449878]
[1724903629898,3.54354616,143.06,143.03,4.48449878]
[1724903630991,0.04944616,143.06,143.03,4.48449878]
[1724903631497,3.54364616,143.06,143.03,4.48449878]
[1724903632595,10.74944616,143.06,143.03,0.04449878]
[1724903632795,0.04944616,143.06,143.03,0.04449878]
[1724903633098,0.04944616,143.06,143.03,10.74449878]
[1724903633299,0.04944616,143.06,143.03,0.04449878]
[1724903633990,0.04944616,143.06,143.03,3.53929878]
[1724903634695,0.04944616,143.06,143.04,3.4946]
[1724903634891,3.4931,143.11,143.05,10.7]
[1724903635092,339.0,143.15,143.06,4.44]
[1724903635286,3.4927,143.12,143.07,11.9598]
[1724903635993,0.04436479,143.11,143.08,0.0508614]
[1724903636801,0.04436479,143.11,143.08,3.5444614]
[1724903639904,0.04436479,143.11,143.08,0.0508614]
[1724903640599,0.04436479,143.11,143.08,3.5444614]
[1724903641104,339.0,143.18,143.09,10.7]
[1724903641402,10.7,143.15,143.1,4.44]
[1724903641595,14.1924,143.13,143.1,4.44]
[1724903641992,14.24430194,143.13,143.1,4.48696742]
[1724903642401,10.75190194,143.13,143.1,4.48696742]
[1724903642795,14.24430194,143.13,143.1,4.48696742]
[1724903642999,10.75190194,143.13,143.1,4.48696742]
[1724903643393,10.75190194,143.13,143.1,7.98006742]
[1724903643394,0.05190194,143.13,143.1,7.98006742]
[1724903643596,0.05190194,143.13,143.1,4.48696742]
[1724903645398,0.05190194,143.13,143.1,7.98006742]
[1724903646001,0.05190194,143.13,143.1,18.68006742]
[1724903646898,0.05190194,143.13,143.1,15.18696742]
[1724903647099,0.05190194,143.13,143.1,4.48696742]
[1724903647499,0.05190194,143.13,143.1,7.97986742]
[1724903648901,0.05190194,143.13,143.11,10.7]
[1724903649105,0.05190194,143.13,143.1,4.48696742]
[1724903649106,0.05190194,143.13,143.1,15.18696742]
[1724903649503,0.05190194,143.13,143.11,3.4928]
[1724903651107,0.05190194,143.13,143.12,3.4926]
[1724903652407,0.05190194,143.13,143.11,3.4928]
[1724903653405,0.05190194,143.13,143.1,0.04696742]
[1724903653609,0.05190194,143.13,143.11,4.44]
[1724903656511,0.05190194,143.13,143.11,7.9328]
[1724903664914,0.05190194,143.13,143.12,3.4926]
[1724903665412,0.05190194,143.13,143.12,14.1926]
[1724903665813,0.05190194,143.13,143.12,15.4981]
[1724903666319,3.4912,143.18,143.13,3.4922]
[1724903666818,3.4912,143.18,143.14,3.4921]
[1724903667419,0.04939287,143.17,143.15,0.0450964]
[1724903667818,0.04939287,143.17,143.16,3.4917]
[1724903668020,0.04939287,143.17,143.15,15.1450964]
[1724903669313,0.04939287,143.17,143.16,3.4917]
[1724903672626,342.49,143.23,143.16,10.7]
[1724903672926,3.49,143.23,143.17,1.2889]
[1724903673126,3.49,143.23,143.18,3.491]
[1724903673328,3.49,143.23,143.19,4.4]
[1724903673626,0.04499897,143.22,143.2,3.53628397]
[1724903673821,0.04499897,143.22,143.2,0.04568397]
[1724903674930,0.04499897,143.22,143.2,3.53618397]
[1724903677329,0.04499897,143.22,143.21,3.4905]
[1724903682531,0.04499897,143.22,143.2,0.04568397]
[1724903683539,14.1905,143.21,143.2,0.04568397]
[1724903688440,3.4911,143.19,143.16,4.4]
[1724903688641,14.1911,143.19,143.16,4.4]
[1724903688845,14.1911,143.19,143.16,7.8915]
[1724903689441,14.24151601,143.19,143.16,7.93845157]
[1724903690045,3.54151601,143.19,143.16,7.93845157]
[1724903690233,3.54151601,143.19,143.17,3.4914]
[1724903690439,0.05041601,143.19,143.17,3.4914]
[1724903691347,0.05041601,143.19,143.18,3.4912]
[1724903692046,0.05041601,143.19,143.17,3.4913]
[1724903694148,0.05041601,143.19,143.16,7.93855157]
[1724903695846,0.05041601,143.19,143.17,3.4914]
[1724903696049,0.05041601,143.19,143.16,4.44695157]
[1724903697347,0.05041601,143.19,143.17,3.4914]
[1724903697951,0.05041601,143.19,143.18,3.4912]
[1724903698246,0.05041601,143.19,143.17,1.3549]
[1724903698653,0.05041601,143.19,143.17,4.8461]
[1724903698845,0.05041601,143.19,143.17,1.3549]
[1724903699646,0.05041601,143.19,143.18,3.4912]
[1724903700454,0.05041601,143.19,143.17,4.8462]
[1724903701156,0.05041601,143.19,143.18,3.4912]
[1724903703457,0.05041601,143.19,143.17,2.691]
[1724903705558,0.05041601,143.19,143.17,6.1824]
[1724903706655,0.05041601,143.19,143.18,3.4912]
[1724903708860,0.05041601,143.19,143.17,16.8823]
[1724903709055,0.05041601,143.19,143.17,13.391]
[1724903710252,0.05041601,143.19,143.17,2.691]
[1724903710965,0.05041601,143.19,143.17,6.1823]
[1724903711363,0.05041601,143.19,143.18,3.4912]
[1724903712765,10.75041601,143.19,143.16,0.04695157]
[1724903713464,3.4913,143.18,143.16,0.04695157]
[1724903713870,0.05041601,143.19,143.16,0.04695157]
[1724903714869,3.54131601,143.19,143.16,0.04695157]
[1724903716071,0.05041601,143.19,143.16,0.04695157]
[1724903716278,0.05041601,143.19,143.16,3.53855157]
[1724903719058,3.54131601,143.19,143.16,3.53855157]
[1724903722762,3.4913,143.18,143.16,0.04695157]
[1724903724272,3.4914,143.17,143.16,0.04695157]
[1724903725778,10.75972921,143.17,143.16,0.04695157]
[1724903725981,10.75972921,143.17,143.1,1.3443]
[1724903725982,50.06832921,143.17,143.1,1.3443]
[1724903726283,10.7,143.13,143.1,1.3443]
[1724903726474,3.4925,143.13,143.1,4.8374]
[1724903726975,3.54557739,143.13,143.1,4.88859417]
[1724903727474,0.05307739,143.13,143.11,3.4928]
[1724903728882,0.05307739,143.13,143.12,3.4926]
[1724903730868,342.4917,143.16,143.13,3.4923]
[1724903730869,339.0,143.16,143.13,3.4923]
[1724903731076,339.0,143.16,143.13,4.34]
[1724903731280,15.04,143.22,143.15,10.7]
[1724903731575,7.26996389,143.21,143.15,10.7]
[1724903731773,339.0,143.23,143.16,10.7]
[1724903731978,0.05140598,143.21,143.18,0.05045047]
[1724903732279,0.05099924,143.21,143.18,0.0458992]
[1724903732872,0.05099924,143.21,143.18,3.5370992]
[1724903733281,3.54149924,143.21,143.18,0.0458992]
[1724903733778,0.05099924,143.21,143.18,0.0458992]
[1724903734076,0.05099924,143.21,143.18,10.7458992]
[1724903734278,0.05099924,143.21,143.18,12.0998992]
[1724903734480,0.05099924,143.21,143.19,3.4908]
[1724903735982,0.05099924,143.21,143.19,3.4909]
[1724903737582,0.05099924,143.21,143.18,15.5909992]
[1724903738177,0.05099924,143.21,143.18,1.3998992]
[1724903738878,0.05099924,143.21,143.18,4.8908992]
[1724903742881,0.05099924,143.21,143.18,1.3998992]
[1724903743080,0.05099924,143.21,143.18,12.0998992]
[1724903743381,0.05099924,143.21,143.18,15.5908992]
[1724903747882,0.05099924,143.21,143.18,12.0998992]
[1724903748479,0.05099924,143.21,143.18,1.3998992]
[1724903749083,0.05099924,143.21,143.18,4.8908992]
[1724903750989,0.05099924,143.21,143.18,12.0998992]
[1724903752393,0.05099924,143.21,143.18,15.5908992]
[1724903753090,0.05099924,143.21,143.19,3.4909]
[1724903753987,0.05099924,143.21,143.2,10.7]
[1724903754385,339.0,143.28,143.22,3.4901]
[1724903754587,3.41062211,143.28,143.22,14.1901]
[1724903754786,10.7,143.29,143.22,14.1901]
[1724903754981,10.76289216,143.27,143.23,3.4899]
[1724903755190,7.27379216,143.27,143.22,10.7]
[1724903755384,0.05308112,143.26,143.23,0.0474462]
[1724903757293,0.05308112,143.26,143.23,3.5373462]
[1724903758990,0.05308112,143.26,143.24,3.4895]
[1724903759184,0.05308112,143.26,143.23,10.7474462]
[1724903760193,0.05308112,143.26,143.24,3.4897]
[1724903761092,10.7,143.25,143.23,0.0474462]
[1724903762295,14.1897,143.24,143.23,0.0474462]
[1724903767096,14.1897,143.24,143.18,3.4911]
[1724903767097,10.7,143.24,143.18,3.4911]
[1724903767405,10.7,143.2,143.16,3.4915]
[1724903767905,14.1909,143.2,143.17,3.4914]
[1724903768200,14.24211935,143.2,143.17,3.54304085]
[1724903769000,3.491,143.19,143.17,0.05164085]
[1724903769202,0.05121935,143.2,143.17,0.05164085]
[1724903769703,3.54211935,143.2,143.17,3.54294085]
[1724903770099,3.54211935,143.2,143.17,0.05164085]
[1724903771794,3.491,143.19,143.17,0.05164085]
[1724903771998,10.75121935,143.2,143.17,0.05164085]
[1724903772400,3.4912,143.19,143.17,0.05164085]
[1724903774101,0.05121935,143.2,143.17,0.05164085]
[1724903775313,3.54211935,143.2,143.17,3.54304085]
[1724903777205,0.05121935,143.2,143.18,10.7]
[1724903777407,0.05121935,143.2,143.17,10.75164085]
[1724903778913,0.05121935,143.2,143.18,3.491]
[1724903781919,0.05121935,143.2,143.17,14.24294085]
[1724903783015,0.05121935,143.2,143.18,3.4912]
[1724903783923,0.05121935,143.2,143.18,10.7]
[1724903785829,0.05121935,143.2,143.19,4.32]
[1724903786434,0.05121935,143.2,143.19,7.8109]
[1724903793838,0.05121935,143.2,143.19,4.32]
[1724903797826,0.05121935,143.2,143.19,7.8109]
[1724903801138,0.05121935,143.2,143.19,4.32]
[1724903802434,0.05121935,143.2,143.19,7.8109]
[1724903805747,0.05121935,143.2,143.17,0.05164085]
[1724903806043,0.05121935,143.2,143.17,4.37164085]
[1724903807245,0.05121935,143.2,143.17,3.54294085]
[1724903807445,0.05121935,143.2,143.17,7.86294085]
[1724903813941,0.05121935,143.2,143.17,15.07164085]
[1724903814651,3.54211935,143.2,143.17,7.86304085]
[1724903815149,0.05121935,143.2,143.17,7.86304085]
[1724903824054,0.05121935,143.2,143.18,3.4912]
[1724903824255,0.05121935,143.2,143.17,4.37164085]
[1724903824857,0.05121935,143.2,143.17,7.86294085]
[1724903826850,0.05121935,143.2,143.17,4.37164085]
[1724903827251,3.54201935,143.2,143.17,4.37164085]
[1724903828552,3.54201935,143.2,143.17,7.86304085]
[1724903828953,0.05121935,143.2,143.18,3.4912]
[1724903829147,0.05121935,143.2,143.17,4.37164085]
[1724903830455,0.05121935,143.2,143.17,7.86294085]
[1724903831163,0.05121935,143.2,143.17,4.37164085]
[1724903831662,0.05121935,143.2,143.18,3.4911]
[1724903833859,0.05121935,143.2,143.19,3.4909]
[1724903834166,0.05121935,143.2,143.18,10.7]
[1724903834352,0.05121935,143.2,143.19,10.7]
[1724903834660,0.05121935,143.2,143.19,14.1909]
[1724903835957,339.0,143.24,143.2,3.4905]
[1724903836151,7.27765256,143.23,143.2,3.4905]
[1724903836352,339.0,143.24,143.2,3.4905]
[1724903836551,7.27793181,143.23,143.2,3.4905]
[1724903836762,339.0,143.24,143.2,3.4905]
[1724903836959,7.327628,143.23,143.21,0.05224293]
[1724903837161,0.04968165,143.23,143.21,0.05224293]
[1724903838061,0.04968165,143.23,143.21,3.54274293]
[1724903842962,0.04968165,143.23,143.22,3.4902]
[1724903843158,7.33029223,143.23,143.22,3.4902]
[1724903844862,0.04968165,143.23,143.22,3.4902]
[1724903847863,0.04968165,143.23,143.21,3.54264293]
[1724903848971,0.04968165,143.23,143.21,0.05224293]
[1724903849173,0.04968165,143.23,143.21,4.25224293]
[1724903849480,0.04968165,143.23,143.21,7.74254293]
[1724903853871,0.04968165,143.23,143.21,0.05224293]
[1724903853872,3.53968165,143.23,143.21,0.05224293]
[1724903862073,0.04968165,143.23,143.21,0.05224293]
[1724903862578,0.04968165,143.23,143.22,3.4902]
[1724903862769,0.04968165,143.23,143.21,0.05224293]
[1724903862968,0.04968165,143.23,143.21,10.75224293]
[1724903863365,0.04968165,143.23,143.22,7.6902]
[1724903863770,339.0,143.26,143.22,4.2]
[1724903863974,339.0,143.26,143.25,3.4895]
[1724903864480,339.0,143.26,143.25,4.7495]
[1724903865670,0.04765803,143.27,143.25,4.7495]
[1724903866472,0.04765803,143.27,143.25,1.26]
[1724903869777,0.04765803,143.27,143.25,4.7493]
[1724903869976,0.04765803,143.27,143.25,6.1105]
[1724903874182,0.04765803,143.27,143.26,4.2]
[1724903875281,0.04765803,143.27,143.26,7.6892]
[1724903876778,0.04765803,143.27,143.26,4.2]
[1724903882883,0.04765803,143.27,143.26,7.6892]
[1724903886889,0.04765803,143.27,143.26,18.3892]
[1724903894193,0.04765803,143.27,143.26,7.6892]
[1724903895591,0.04765803,143.27,143.26,4.2]
[1724903895794,0.04765803,143.27,143.25,4.2]
[1724903896891,339.0,143.35,143.25,4.2]
[1724903896892,2.5384,143.37,143.26,10.7]
[1724903897091,339.0,143.41,143.31,42.8]
[1724903897390,339.0,143.41,143.4,10.7]
[1724903897596,342.53278946,143.43,143.38,3.4863]
[1724903897802,346.01808946,143.43,143.4,10.7]
[1724903898001,342.57719539,143.43,143.4,10.74971059]
[1724903898997,3.4854,143.42,143.4,10.74971059]
[1724903899890,3.4854,143.42,143.4,0.04971059]
[1724903900296,342.57719539,143.43,143.4,0.04971059]
[1724903900297,353.27719539,143.43,143.4,0.04971059]
[1724903900500,10.7,143.42,143.4,0.04971059]
[1724903901195,349.7,143.42,143.4,0.04971059]
[1724903901390,3.4856,143.41,143.4,0.04971059]
[1724903903000,14.1856,143.41,143.4,0.04971059]
[1724903904798,3.4859,143.4,143.35,4.2]
[1724903905896,0.05158047,143.39,143.36,0.04918676]
[1724903906293,0.05158047,143.39,143.37,3.4864]
[1724903909700,10.75158047,143.39,143.36,0.04918676]
[1724903910010,10.7,143.38,143.36,0.04918676]
[1724903910207,10.7,143.37,143.36,0.04918676]
[1724903911097,14.1866,143.37,143.36,0.04918676]
[1724903912805,3.4866,143.37,143.36,0.04918676]
[1724903913005,14.1866,143.37,143.36,0.04918676]
[1724903913707,3.4866,143.37,143.36,0.04918676]
[1724903913910,14.1866,143.37,143.36,0.04918676]
[1724903919115,353.1866,143.37,143.36,0.04918676]
[1724903920112,349.7,143.37,143.31,4.2]
[1724903920312,10.7,143.35,143.3,4.2]
[1724903920509,14.1871,143.35,143.32,3.4876]
[1724903920909,14.23799681,143.35,143.32,3.54087904]
[1724903930034,0.05089681,143.35,143.32,0.05327904]
[1724903930634,0.05089681,143.35,143.33,3.4875]
[1724903930933,0.05089681,143.35,143.32,10.75327904]
[1724903931232,0.05089681,143.35,143.34,14.1873]
[1724903931536,3.4862,143.39,143.35,3.4869]
[1724903931731,3.4862,143.39,143.34,14.9]
[1724903932643,0.04816652,143.38,143.35,0.05193602]
[1724903933535,0.04816652,143.38,143.36,3.4868]
[1724903938634,0.04816652,143.38,143.35,10.75193602]
[1724903938635,0.04816652,143.38,143.37,3.4866]
[1724903948430,0.04816652,143.38,143.36,3.4867]
[1724903953547,10.7,143.37,143.35,0.05193602]
[1724903957049,0.04816652,143.38,143.35,3.53883602]
[1724903960953,14.1868,143.36,143.35,0.05193602]
[1724903964044,3.4868,143.36,143.35,0.05193602]
[1724903964553,14.1868,143.36,143.35,0.05193602]
[1724903967351,14.1868,143.36,143.29,4.18]
[1724903967352,3.4877,143.33,143.29,4.18]
[1724903967657,10.7,143.32,143.29,4.18]
[1724903968157,10.74732657,143.32,143.29,4.22731347]
[1724903968358,10.74732657,143.32,143.3,3.4881]
[1724903968950,10.74732657,143.32,143.29,4.22731347]
[1724903970061,0.04732657,143.32,143.29,7.71561347]
[1724903970262,0.04732657,143.32,143.29,4.22731347]
[1724903970452,0.04732657,143.32,143.3,10.7]
[1724903970659,0.04732657,143.32,143.31,3.488]
[1724903972761,3.4868,143.36,143.32,3.4876]
[1724903972956,3.4866,143.37,143.29,4.18]
[1724903973161,3.4866,143.37,143.32,12.0232]
[1724903973364,3.4866,143.37,143.33,1.2941]
[1724903973657,3.4866,143.37,143.33,5.4741]
[1724903973864,0.04938004,143.36,143.34,0.05118871]
[1724903975063,0.04938004,143.36,143.34,3.53848871]
[1724903979970,0.04938004,143.36,143.35,3.487]
[1724903980964,0.04938004,143.36,143.33,4.18]
[1724903981167,53.5,143.34,143.24,2.5929]
[1724903981367,42.8,143.32,143.24,2.5929]
[1724903981668,10.7,143.28,143.24,6.0824]
[1724903982173,0.0489845,143.27,143.25,0.05206261]
[1724903984476,3.5379845,143.27,143.25,0.05206261]
[1724903984668,10.7,143.26,143.25,0.05206261]
[1724903984969,14.1892,143.26,143.25,0.05206261]
[1724903985772,3.4892,143.26,143.25,0.05206261]
[1724903985981,14.1892,143.26,143.25,0.05206261]
[1724903987281,3.4892,143.26,143.25,0.05206261]
[1724903987479,3.5379845,143.27,143.25,0.05206261]
[1724903987876,0.0489845,143.27,143.25,0.05206261]
[1724903988481,0.0489845,143.27,143.25,3.54146261]
[1724903988680,0.0489845,143.27,143.25,7.72146261]
[1724903989387,0.0489845,143.27,143.25,4.23206261]
[1724903993686,0.0489845,143.27,143.25,7.72146261]
[1724903997189,0.0489845,143.27,143.26,3.4892]
[1724903997684,10.7,143.31,143.26,3.4892]
[1724903997890,349.7,143.32,143.27,3.4889]
[1724903998487,3.4882,143.31,143.27,3.4889]
[1724903998888,0.04496506,143.3,143.28,0.04473512]
[1724903999088,0.04496506,143.3,143.28,3.53343512]
[1724903999594,0.04496506,143.3,143.28,0.04473512]
[1724904000090,339.0,143.32,143.29,4.18]
[1724904000290,14.1874,143.34,143.29,5.4991]
[1724904000495,14.1874,143.34,143.3,3.4882]
[1724904000786,3.4874,143.34,143.3,3.4882]
[1724904001190,0.04895522,143.33,143.31,3.488]
[1724904001385,0.04895522,143.33,143.31,3.53601736]
[1724904003288,0.04895522,143.33,143.31,0.04801736]
[1724904003593,10.7,143.32,143.31,0.04801736]
[1724904004296,0.04895522,143.33,143.31,0.04801736]
[1724904005094,3.53655522,143.33,143.31,0.04801736]
[1724904005696,0.04895522,143.33,143.31,0.04801736]
[1724904010200,0.04895522,143.33,143.31,3.53601736]
[1724904010599,0.04895522,143.33,143.31,0.04801736]
[1724904011393,0.04895522,143.33,143.32,3.4878]
[1724904011598,0.04895522,143.33,143.31,0.04801736]
[1724904012200,0.04895522,143.33,143.31,3.53581736]
[1724904012395,0.04895522,143.33,143.31,0.04801736]
[1724904012597,0.04895522,143.33,143.32,10.7]
[1724904012795,339.0,143.38,143.32,11.9535]
[1724904013599,3.4866,143.37,143.32,11.9535]
[1724904013796,0.0488748,143.36,143.32,11.9535]
[1724904014198,0.0488748,143.36,143.34,3.4873]
[1724904018700,0.0488748,143.36,143.35,3.487]
[1724904031613,0.0488748,143.36,143.35,14.187]
[1724904031812,10.7,143.44,143.35,10.7]
[1724904032116,3.4853,143.43,143.38,10.7]
[1724904032310,3.4853,143.43,143.38,14.88]
[1724904032513,339.0,143.45,143.39,3.4859]
[1724904032715,3.4853,143.43,143.39,3.4859]
[1724904032911,3.53143645,143.43,143.41,0.0464917]
[1724904034820,3.4853,143.42,143.41,0.0464917]
[1724904038018,342.4853,143.42,143.41,0.0464917]
[1724904038422,3.4859,143.4,143.37,3.4865]
[1724904039424,3.53702441,143.4,143.37,3.5396178]
[1724904040323,0.05112441,143.4,143.38,3.4863]
[1724904042728,3.4863,143.38,143.37,0.0531178]
[1724904042921,14.15248232,143.38,143.32,1.2535]
[1724904043224,3.4873,143.34,143.32,4.18]
[1724904043427,3.4873,143.34,143.25,1.3122]
[1724904043428,10.7,143.34,143.28,1.3001]
[1724904043621,10.7,143.34,143.3,4.18]
[1724904043923,339.0,143.4,143.31,0.0478149]
[1724904043924,0.05172422,143.33,143.31,0.0478149]
[1724904044125,0.04499719,143.33,143.3,14.88]
[1724904044315,0.04499719,143.33,143.31,0.05303044]
[1724904044516,0.04499719,143.33,143.32,3.4877]
[1724904045226,0.04499719,143.33,143.31,0.05303044]
[1724904046325,0.04499719,143.33,143.31,3.54093044]
[1724904048114,0.04499719,143.33,143.32,3.4878]
[1724904060446,0.04499719,143.33,143.32,14.1878]
[1724904061545,339.0,143.39,143.36,3.4868]
[1724904061747,3.49036798,143.46,143.36,10.7]
[1724904061748,10.7,143.43,143.36,10.7]
[1724904062251,349.7,143.44,143.37,10.7]
[1724904062443,10.7,143.44,143.37,10.7]
[1724904062741,0.05180624,143.42,143.39,10.75163905]
[1724904062947,0.05180624,143.42,143.4,10.7]
[1724904063137,0.05180624,143.42,143.4,12.0104]
[1724904064438,0.05180624,143.42,143.41,3.4856]
[1724904065740,10.7,143.53,143.4,12.0104]
[1724904065941,3.46462586,143.52,143.45,10.7]
[1724904066139,3.46462586,143.52,143.45,14.9]
[1724904066746,3.52921417,143.5,143.47,0.04477834]
[1724904066945,10.7,143.48,143.47,0.04477834]
[1724904067252,3.4844,143.47,143.42,7.6853]
[1724904067451,10.7,143.46,143.42,7.6853]
[1724904068160,0.04457079,143.45,143.43,0.04983894]